bitfinex/quotes_ETHUSD_20250220
["timestamp","ask_amount","ask_price","bid_price","bid_amount"]
[1740020020834,0.06074325,2751.8,2751.4,3.63449]
[1740020021168,0.06074325,2751.8,2751.6,4.45903]
[1740020021324,0.06074325,2751.8,2751.7,3.63411]
[1740020021520,0.757,2752.6,2751.7,3.63411]
[1740020021736,3.69258553,2752.5,2751.9,3.63373]
[1740020021959,5.03982408,2752.5,2751.7,3.63411]
[1740020022330,1.40676408,2752.5,2751.8,3.63389]
[1740020022748,5.03988408,2752.5,2751.9,3.63383]
[1740020023108,1.40676408,2752.5,2751.7,3.63402]
[1740020023407,0.05952553,2752.5,2751.9,3.63384]
[1740020024743,3.63324,2752.4,2751.7,4.079902]
[1740020024956,3.63324,2752.4,2751.6,1.5456906]
[1740020025150,0.05978597,2752.3,2751.6,5.1799006]
[1740020025351,0.05978597,2752.3,2751.7,3.63408]
[1740020026359,0.05978597,2752.3,2751.6,1.1088]
[1740020026555,0.05978597,2752.3,2751.6,4.74302]
[1740020026744,3.63353,2752.2,2751.4,0.71419209]
[1740020026951,3.63386,2751.9,2751.3,0.284]
[1740020027263,4.43946,2752.0,2751.3,3.91856]
[1740020027444,0.05991619,2751.8,2751.4,3.63451]
[1740020027624,4.43946,2752.0,2751.4,3.63451]
[1740020027817,0.05991619,2751.7,2751.4,3.63451]
[1740020028023,4.43946,2752.0,2751.4,3.63451]
[1740020028239,0.05991619,2751.6,2751.4,3.63451]
[1740020028424,4.43946,2752.0,2751.4,3.63451]
[1740020028744,0.05991619,2751.5,2751.4,4.47256052]
[1740020028942,0.8057,2752.0,2751.5,3.63434]
[1740020029120,5.39,2752.1,2751.6,3.63423]
[1740020029325,5.39,2752.1,2751.8,3.63398]
[1740020029326,0.05978597,2752.0,2751.8,3.63398]
[1740020029723,0.05978597,2752.0,2751.6,4.40373]
[1740020029932,0.05978597,2752.0,2751.6,4.92790805]
[1740020030141,0.05978597,2752.0,2751.6,0.52417805]
[1740020030373,3.69358597,2752.0,2751.3,4.72283]
[1740020030663,3.69358597,2752.0,2751.3,0.284]
[1740020030859,0.05978597,2752.0,2751.3,0.284]
[1740020031047,0.795,2751.8,2751.3,0.284]
[1740020031498,0.05949489,2751.7,2751.3,0.284]
[1740020031824,0.795,2751.8,2751.3,0.284]
[1740020031969,0.05949489,2751.6,2751.3,0.284]
[1740020032163,0.795,2751.8,2751.2,3.63472]
[1740020032465,0.05949489,2751.7,2751.1,0.283]
[1740020032666,0.05949489,2751.7,2751.1,4.76038396]
[1740020033003,0.05949489,2751.7,2751.1,1.12550396]
[1740020033004,3.69363489,2751.7,2751.1,1.12550396]
[1740020034687,3.69363489,2751.7,2751.1,0.283]
[1740020034993,3.69363489,2751.7,2751.1,0.28025775]
[1740020035511,0.05949489,2751.7,2751.1,0.28025775]
[1740020035715,0.05949489,2751.7,2751.2,3.63471]
[1740020036172,0.05949489,2751.7,2751.6,3.63424]
[1740020036721,6.1781,2752.4,2751.8,3.63388]
[1740020037371,6.1781,2752.4,2751.9,3.63384]
[1740020037772,6.1994,2752.7,2752.1,3.63355]
[1740020037974,6.1994,2752.7,2751.9,7.55059]
[1740020038185,6.81934,2752.7,2752.0,3.63367]
[1740020038431,10.45214,2752.7,2752.0,3.63367]
[1740020038587,10.45214,2752.7,2752.0,3.63369]
[1740020038917,3.63293,2752.6,2751.9,3.91675]
[1740020039123,5.041427,2752.6,2751.9,0.283]
[1740020039273,3.63327,2752.4,2751.9,0.283]
[1740020039922,3.63309,2752.5,2751.9,0.283]
[1740020040117,1.5493857,2752.5,2751.9,3.91684]
[1740020040323,6.81934,2752.7,2752.1,3.63357]
[1740020040485,6.81934,2752.7,2751.9,4.68584]
[1740020040819,3.63301,2752.6,2751.9,4.68584]
[1740020041190,10.45216,2752.7,2752.0,3.63363]
[1740020041393,6.81934,2752.7,2752.1,3.63357]
[1740020041810,6.81934,2752.7,2752.2,3.63332]
[1740020041975,6.1994,2752.7,2752.2,3.63332]
[1740020042580,0.8321,2753.0,2752.2,3.63332]
[1740020042779,4.46459,2753.0,2752.3,3.63322]
[1740020043103,4.46459,2753.0,2752.3,4.359874]
[1740020043306,0.8321,2753.0,2752.4,3.63308]
[1740020043494,4.46451,2753.0,2752.4,3.63308]
[1740020043688,3.63254,2752.9,2752.3,0.726654]
[1740020044322,0.8321,2753.0,2752.4,3.63313]
[1740020044490,4.46451,2753.0,2752.4,3.63313]
[1740020044825,3.63265,2752.9,2752.1,3.63357]
[1740020045121,3.6328,2752.7,2752.0,3.63365]
[1740020045428,3.63315,2752.5,2752.0,0.282]
[1740020045719,3.63314,2752.5,2752.0,0.282]
[1740020045921,7.26633,2752.5,2752.0,0.282]
[1740020046273,3.63314,2752.5,2752.0,0.282]
[1740020046583,0.7682,2752.6,2752.0,3.91565]
[1740020046993,5.4529705,2752.6,2752.0,0.282]
[1740020047289,3.63307,2752.5,2752.0,0.282]
[1740020047878,3.63328,2752.4,2752.0,0.282]
[1740020048084,3.63319,2752.4,2752.0,0.282]
[1740020048284,3.63332,2752.3,2751.6,0.7877]
[1740020048527,3.63382,2752.0,2751.4,0.282]
[1740020048729,6.2138,2752.1,2751.4,0.282]
[1740020048886,3.63372,2752.0,2751.4,3.91643]
[1740020049085,3.69403444,2752.0,2751.4,0.282]
[1740020049732,0.06031444,2752.0,2751.4,0.282]
[1740020049900,0.06031444,2752.0,2751.4,3.9164]
[1740020050231,4.60251388,2752.0,2751.4,0.282]
[1740020050438,0.06031444,2752.0,2751.4,0.282]
[1740020050731,0.06031444,2752.0,2751.9,3.63385]
[1740020051132,0.8136,2753.0,2751.8,0.8033]
[1740020051331,0.8136,2753.0,2752.3,3.63332]
[1740020051332,0.05729326,2752.9,2752.3,3.63332]
[1740020051534,0.05729326,2752.9,2752.3,3.91532]
[1740020051721,0.50762259,2752.9,2752.3,3.91521]
[1740020052031,0.50762259,2752.9,2752.3,0.282]
[1740020052221,4.14018259,2752.9,2752.3,0.282]
[1740020052534,0.50762259,2752.9,2752.3,0.282]
[1740020052931,3.63267,2752.8,2752.3,0.282]
[1740020053237,4.49130726,2752.8,2752.3,0.282]
[1740020053526,0.05729326,2752.7,2752.3,0.282]
[1740020053858,0.45032933,2752.9,2752.4,3.6331]
[1740020054062,0.05729326,2752.6,2752.3,3.91528]
[1740020054224,0.45032933,2752.9,2752.3,3.91246464]
[1740020054424,0.05729326,2752.5,2752.3,3.91246464]
[1740020054660,0.45032933,2752.9,2752.3,3.91246464]
[1740020054837,0.05729326,2752.4,2752.3,3.91255464]
[1740020055052,4.44602,2753.0,2752.3,3.91255464]
[1740020055364,3.63267,2752.8,2752.3,0.27923464]
[1740020055566,0.05782944,2752.7,2752.3,3.91246464]
[1740020055864,9.02222,2753.2,2752.4,0.7827]
[1740020056162,0.05782944,2752.6,2752.5,3.63305]
[1740020056675,3.6324,2753.0,2752.4,4.41587]
[1740020056977,0.05786005,2752.9,2752.4,4.41587]
[1740020057172,9.02222,2753.2,2752.4,4.41587]
[1740020057173,5.39,2753.2,2752.7,3.63279]
[1740020057376,6.368122,2753.2,2752.7,3.63279]
[1740020057602,0.05786005,2753.1,2752.5,7.26601]
[1740020057874,0.05786005,2753.1,2752.5,3.63296]
[1740020058993,0.05786005,2753.1,2752.5,3.62943917]
[1740020059280,0.05786005,2753.1,2752.5,7.26240917]
[1740020059577,0.05786005,2753.1,2752.6,3.63285]
[1740020060574,0.05786005,2753.1,2752.7,3.63275]
[1740020060981,0.05786005,2753.1,2752.5,3.62943917]
[1740020061135,0.05786005,2753.1,2752.7,0.281]
[1740020061379,0.05786005,2753.1,2752.7,3.91371]
[1740020061779,0.05786005,2753.1,2752.7,3.91379]
[1740020062082,0.759,2753.3,2752.8,3.63265]
[1740020062281,0.05877903,2753.0,2752.8,3.63265]
[1740020062482,0.759,2753.3,2752.8,3.63265]
[1740020062779,5.39,2753.4,2752.9,3.63248]
[1740020062943,5.39,2753.4,2752.9,7.26493]
[1740020063144,0.05877903,2753.3,2753.0,3.63237]
[1740020063837,0.05877903,2753.3,2753.1,3.63216]
[1740020064037,0.05877903,2753.3,2753.0,4.3994]
[1740020064454,3.63145,2753.8,2753.1,3.63222]
[1740020064657,0.05877903,2753.2,2753.1,3.63222]
[1740020064943,0.05913117,2753.2,2753.1,3.63226]
[1740020065855,6.2069,2753.9,2753.3,3.6319]
[1740020066242,0.05693252,2753.8,2753.3,3.6319]
[1740020067443,0.05693252,2753.8,2753.3,7.26382]
[1740020067741,0.05693252,2753.8,2753.4,3.63183]
[1740020067972,0.05693252,2753.8,2753.5,0.28]
[1740020072690,3.63148,2753.7,2753.5,0.28]
[1740020072997,0.05693252,2753.8,2753.5,0.28]
[1740020073293,5.39,2753.9,2753.5,0.28]
[1740020073452,0.05719273,2753.7,2753.5,0.28]
[1740020073654,3.63134,2753.8,2753.5,0.28]
[1740020073993,5.39,2753.9,2753.5,0.28]
[1740020074179,0.05719273,2753.8,2753.5,0.28]
[1740020076273,3.68857273,2753.8,2753.5,0.28]
[1740020077658,3.6316,2753.6,2753.0,1.48919101]
[1740020077859,3.63184,2753.5,2753.1,0.277]
[1740020078098,0.05772848,2753.5,2753.1,0.277]
[1740020079481,3.6316,2753.6,2753.1,0.277]
[1740020079678,0.05568589,2753.4,2753.1,0.277]
[1740020079902,3.6316,2753.6,2753.1,0.277]
[1740020080422,0.05568589,2753.5,2753.1,0.277]
[1740020080626,0.05568589,2753.5,2753.1,3.90925]
[1740020081123,3.63156,2753.7,2753.1,3.90925]
[1740020081459,6.368298,2753.9,2753.1,1.107863]
[1740020081596,0.05341673,2753.6,2753.1,0.277]
[1740020081919,5.39,2753.9,2753.4,3.63176]
[1740020082118,5.39,2753.9,2753.2,3.63206]
[1740020082119,0.05343205,2753.5,2753.2,3.63206]
[1740020082295,3.63138,2753.8,2753.5,0.278]
[1740020082494,3.63138,2753.8,2753.0,4.39945]
[1740020082809,3.63138,2753.8,2753.3,0.278]
[1740020083121,7.26282,2753.8,2753.3,0.278]
[1740020083424,3.63138,2753.8,2753.3,0.278]
[1740020083726,5.26660628,2753.8,2753.3,0.278]
[1740020084084,1.63522628,2753.8,2753.3,3.91]
[1740020084284,1.63522628,2753.8,2753.3,0.278]
[1740020084930,5.26664628,2753.8,2753.3,0.278]
[1740020085429,1.63522628,2753.8,2753.3,3.9099]
[1740020085730,5.39,2753.9,2753.3,3.9099]
[1740020086084,9.02123,2753.9,2753.3,3.9099]
[1740020086426,9.02123,2753.9,2753.3,7.54182]
[1740020086638,5.39,2753.9,2753.4,3.63178]
[1740020086997,3.63122,2753.9,2753.3,0.278]
[1740020087496,4.972632,2753.9,2753.3,0.278]
[1740020088748,4.972632,2753.9,2753.1,3.63219]
[1740020088749,0.7897,2753.8,2753.1,3.91019]
[1740020089039,4.42112,2753.8,2753.2,3.63209]
[1740020089543,0.7897,2753.8,2753.3,3.63198]
[1740020089746,0.7897,2753.8,2753.2,3.6321]
[1740020089945,4.42105,2753.8,2753.2,3.6321]
[1740020090150,3.63149,2753.7,2753.1,3.91019]
[1740020090301,5.8994122,2753.8,2753.1,3.91017]
[1740020090637,5.8994122,2753.8,2753.2,3.63212]
[1740020091400,0.8091,2753.9,2753.1,0.278]
[1740020091616,4.44033,2753.9,2753.2,3.63205]
[1740020091825,0.8091,2753.9,2753.4,3.63186]
[1740020092033,4.44032,2753.9,2753.2,3.63205]
[1740020092541,0.8091,2753.9,2753.3,3.63192]
[1740020092752,5.69551418,2753.9,2753.3,3.63192]
[1740020093402,5.69551418,2753.9,2753.3,7.26382]
[1740020093601,5.69551418,2753.9,2753.3,3.63191]
[1740020094041,0.05363886,2753.8,2753.3,3.63191]
[1740020094445,0.05363886,2753.8,2753.4,0.22948221]
[1740020094833,0.05363886,2753.8,2753.4,3.86134221]
[1740020095952,0.05363886,2753.8,2753.4,3.63186]
[1740020096658,0.05363886,2753.8,2753.3,3.63191]
[1740020097519,0.05363886,2753.8,2753.4,3.63185]
[1740020098557,0.05363886,2753.8,2753.4,3.63177]
[1740020098763,0.05363886,2753.8,2753.1,0.278]
[1740020098967,4.42768,2753.7,2753.1,0.278]
[1740020099120,0.84976186,2753.7,2753.1,3.91024]
[1740020099567,4.48126186,2753.7,2753.0,4.39937]
[1740020099717,0.8046,2753.2,2752.6,8.91284]
[1740020100070,0.05364655,2753.1,2752.4,4.45406]
[1740020100222,3.63261,2752.9,2751.8,8.9538]
[1740020100427,3.63315,2752.5,2751.9,0.7173909]
[1740020100731,0.05364655,2752.4,2751.8,0.277]
[1740020100931,0.05364655,2752.4,2751.8,0.668102]
[1740020101133,0.05364655,2752.4,2752.3,3.63332]
[1740020101345,0.8258,2753.1,2752.7,3.63268]
[1740020101524,0.8255,2753.4,2752.9,3.63249]
[1740020102364,3.63216,2753.2,2752.7,0.277]
[1740020102665,3.63249,2753.0,2752.4,0.277]
[1740020103039,3.63282,2752.7,2752.3,0.277]
[1740020103355,0.8266,2752.8,2752.3,0.277]
[1740020103754,0.8266,2752.8,2752.3,0.50657748]
[1740020105031,4.45928,2752.8,2752.3,0.277]
[1740020105358,0.8296,2752.0,2751.4,4.3596118]
[1740020105519,4.46336,2752.0,2751.5,0.278]
[1740020105722,4.46336,2752.0,2751.2,4.41222]
[1740020105963,3.63386,2751.9,2751.3,0.719222]
[1740020106127,0.8296,2752.0,2751.3,0.719222]
[1740020106324,0.8296,2752.0,2751.3,0.94853396]
[1740020106837,0.8296,2752.0,2751.3,4.58307396]
[1740020107025,0.8296,2752.0,2751.6,3.63424]
[1740020107224,4.46343,2752.0,2751.4,0.7937]
[1740020107429,0.8296,2752.0,2751.4,1.3313764]
[1740020107629,0.8296,2752.0,2751.5,3.63427]
[1740020108024,0.8296,2752.0,2751.6,3.63423]
[1740020108239,0.7965,2752.3,2751.7,3.63406]
[1740020108740,0.7965,2752.3,2751.8,3.63396]
[1740020109050,6.35428181,2752.7,2751.8,3.63396]
[1740020109051,0.05095713,2752.2,2752.1,4.39622]
[1740020109443,0.7748,2752.7,2752.5,3.63296]
[1740020109637,5.39,2753.0,2752.3,0.278]
[1740020109638,6.1648,2753.0,2752.3,0.278]
[1740020109961,0.7748,2753.5,2753.1,3.63224]
[1740020110170,4.40655,2753.5,2752.7,3.63274]
[1740020110371,4.40655,2753.5,2752.9,0.278]
[1740020110780,0.7748,2753.5,2753.1,3.63215]
[1740020112276,0.7621,2753.9,2753.1,3.63215]
[1740020112578,0.71147818,2753.8,2753.4,3.63186]
[1740020112777,0.7621,2753.9,2753.4,3.63186]
[1740020113276,0.7655,2754.6,2753.8,3.63131]
[1740020113572,6.1555,2754.6,2753.8,3.91031]
[1740020113731,0.61555,2754.5,2754.0,3.63106]
[1740020113934,0.7655,2754.6,2754.1,3.63093]
[1740020114270,5.39,2754.8,2754.1,3.63093]
[1740020114636,5.39,2754.8,2753.9,3.63121]
[1740020114974,9.02007,2754.8,2754.0,3.63107]
[1740020115182,4.612627,2754.7,2753.9,3.63118]
[1740020115476,4.612627,2754.7,2753.8,3.91034]
[1740020115644,0.982377,2754.7,2753.8,0.279]
[1740020115844,0.8037,2754.9,2754.2,3.63068]
[1740020116250,0.8037,2754.9,2754.0,3.63107]
[1740020116479,4.43364,2754.9,2754.1,3.63092]
[1740020116684,4.43364,2754.9,2754.2,3.63081]
[1740020117048,0.8037,2754.9,2754.2,3.63081]
[1740020117258,0.8037,2754.9,2754.4,3.63052]
[1740020117746,0.8037,2754.9,2754.2,3.63081]
[1740020118170,3.63003,2754.8,2754.1,3.994027]
[1740020118365,3.63003,2754.8,2754.2,0.7625067]
[1740020118669,0.8037,2754.9,2754.2,0.7625067]
[1740020118983,0.8037,2754.9,2754.3,3.63066]
[1740020119301,0.8037,2754.9,2754.0,3.63096]
[1740020119459,4.4336,2754.9,2754.2,3.63075]
[1740020119662,0.8037,2754.9,2754.2,3.63075]
[1740020120293,0.8037,2754.9,2754.4,3.63054]
[1740020120607,11.74098181,2755.2,2754.6,3.63018]
[1740020120608,6.1226,2755.2,2754.6,3.63018]
[1740020120786,1.433387,2756.1,2755.3,3.62925]
[1740020120787,0.1489805,2756.1,2755.3,3.62925]
[1740020120951,0.7826,2756.0,2755.4,0.362925]
[1740020121151,0.7826,2756.0,2755.0,0.27664112]
[1740020121152,4.41115,2756.0,2755.0,0.27664112]
[1740020121352,3.62913,2755.5,2754.9,0.7713]
[1740020121565,2.72147181,2755.9,2754.7,0.278]
[1740020121772,6.1226,2756.0,2754.8,0.5558]
[1740020121773,0.7658,2755.3,2754.8,0.5558]
[1740020122170,0.7658,2755.3,2754.1,8.43201221]
[1740020122171,3.62927,2755.4,2754.2,0.7627]
[1740020122390,5.34,2755.2,2754.6,3.63028]
[1740020122588,0.7658,2755.3,2754.6,3.63028]
[1740020122863,3.62962,2755.2,2754.2,1.0427]
[1740020123058,3.6299,2754.9,2754.2,1.0427]
[1740020123363,3.6299,2754.9,2753.7,8.91]
[1740020123364,3.63078,2754.3,2753.6,0.281]
[1740020123561,8.97042,2754.5,2753.6,1.20514917]
[1740020123808,5.34,2754.5,2753.4,3.68049168]
[1740020124098,0.04879843,2754.4,2753.8,0.7915]
[1740020124299,0.04879843,2754.4,2753.8,4.42275]
[1740020124469,0.04879843,2754.4,2753.9,4.073465]
[1740020124676,0.04879843,2754.4,2753.9,7.073465]
[1740020124873,3.67934843,2754.4,2753.9,0.442275]
[1740020125083,3.67934843,2754.4,2753.6,0.281]
[1740020125292,3.63069,2754.3,2753.6,0.281]
[1740020125525,0.8216,2754.1,2753.2,1.48980948]
[1740020125690,4.45256,2754.1,2753.2,1.48980948]
[1740020125890,3.63109,2754.0,2753.4,3.3268718]
[1740020126191,3.63137,2753.8,2753.4,3.3268718]
[1740020126395,3.63108,2754.0,2753.4,3.3268718]
[1740020126735,3.63148,2753.7,2753.4,3.3268718]
[1740020126894,3.63136,2753.8,2753.4,3.3268718]
[1740020127294,0.04882143,2753.7,2753.4,2.88899168]
[1740020127694,3.63136,2753.8,2753.4,2.88899168]
[1740020127898,0.04882143,2753.6,2753.4,2.88899168]
[1740020128109,3.63136,2753.8,2753.4,2.88899168]
[1740020128433,3.63148,2753.7,2753.4,2.88899168]
[1740020128634,0.04882143,2753.6,2753.4,2.88899168]
[1740020129419,3.63174,2753.5,2753.4,2.88899168]
[1740020129591,3.63212,2753.3,2752.8,8.443]
[1740020129793,3.63212,2753.3,2752.6,0.281]
[1740020130023,0.04804747,2753.2,2752.6,0.281]
[1740020130542,3.68018747,2753.2,2752.6,0.281]
[1740020130708,0.04804747,2753.2,2752.6,0.281]
[1740020130896,0.04804747,2753.2,2752.6,1.276859]
[1740020131097,3.68019747,2753.2,2752.6,1.276859]
[1740020131311,3.63236,2753.1,2752.6,1.276859]
[1740020132037,0.04804747,2753.0,2752.6,1.276859]
[1740020132337,3.63214,2753.2,2752.6,1.276859]
[1740020132541,0.04804747,2752.9,2752.6,1.276859]
[1740020132839,4.43136,2753.4,2752.7,0.2041259]
[1740020133044,8.97179,2753.5,2752.7,3.8369159]
[1740020133045,5.34,2753.5,2752.7,3.8369159]
[1740020133344,0.04768711,2753.4,2752.8,3.63266]
[1740020133507,0.04768711,2753.4,2752.9,4.01607859]
[1740020133695,0.04768711,2753.4,2753.0,3.63236]
[1740020133896,0.04768711,2753.4,2753.3,3.632]
[1740020134103,0.7795,2754.2,2753.5,3.63173]
[1740020134397,3.62975,2755.1,2753.5,3.63173]
[1740020134398,0.04768711,2754.1,2754.0,3.63107]
[1740020134707,0.7795,2754.7,2753.9,3.63108]
[1740020134922,3.63042,2754.5,2753.7,0.7876]
[1740020135127,3.63042,2754.5,2753.8,3.4431773]
[1740020135297,0.04811731,2754.4,2753.8,0.4431773]
[1740020135994,0.04811731,2754.4,2753.8,4.0745073]
[1740020136195,0.04811731,2754.4,2753.9,3.6311]
[1740020136438,0.7795,2754.7,2754.0,0.40742773]
[1740020136692,3.6303,2754.6,2754.0,0.40742773]
[1740020136851,3.63045,2754.5,2753.8,0.4431773]
[1740020137144,4.40976,2754.7,2753.8,0.4431773]
[1740020137349,8.96845,2756.0,2754.7,3.63015]
[1740020137513,8.96845,2756.0,2754.9,3.62979]
[1740020137700,8.96845,2756.0,2754.8,0.98700098]
[1740020137914,8.96845,2756.0,2754.8,4.61701098]
[1740020138247,5.34,2756.0,2754.8,0.98700098]
[1740020138551,3.62897,2755.6,2754.8,0.98700098]
[1740020138754,3.62885,2755.7,2754.8,0.98700098]
[1740020139058,4.44603219,2755.5,2754.8,0.98700098]
[1740020139219,4.44603219,2755.5,2754.8,0.283]
[1740020139617,3.62963,2755.1,2754.4,0.8192]
[1740020139816,3.6299,2754.9,2754.4,0.282]
[1740020140128,3.63026,2754.7,2754.2,0.282]
[1740020140546,3.63056,2754.4,2754.2,0.282]
[1740020140758,3.63068,2754.3,2753.7,0.283]
[1740020140974,3.63068,2754.3,2753.6,0.363173]
[1740020141141,3.63097,2754.1,2753.6,0.363173]
[1740020141463,0.04685519,2754.0,2753.6,0.363173]
[1740020141761,3.63082,2754.2,2753.6,0.363173]
[1740020141962,0.04685519,2753.9,2753.6,0.363173]
[1740020142165,3.63111,2754.0,2753.6,0.363173]
[1740020142464,3.63148,2753.7,2753.2,0.282]
[1740020142638,0.04685519,2753.6,2753.2,0.282]
[1740020142841,3.63148,2753.7,2753.2,0.282]
[1740020143062,3.632,2753.3,2753.2,0.282]
[1740020143266,3.63197,2753.4,2752.6,3.91591]
[1740020143425,0.04630305,2753.3,2752.6,3.91591]
[1740020144067,0.04630305,2753.3,2752.6,0.283]
[1740020144223,0.04630305,2753.3,2752.6,1.09109398]
[1740020144763,0.04630305,2753.3,2752.7,3.40985977]
[1740020145170,0.829,2753.9,2753.0,3.40985977]
[1740020145371,0.04591944,2753.2,2752.8,3.7596]
[1740020145668,3.63163,2753.6,2752.9,1.08022398]
[1740020145830,3.63147,2753.8,2752.9,1.36322398]
[1740020146028,0.04500671,2753.7,2753.0,3.63239]
[1740020146257,0.829,2753.9,2753.2,3.63209]
[1740020146562,0.04500671,2753.8,2753.3,3.995209]
[1740020146731,0.04500671,2753.8,2753.3,3.632]
[1740020146941,3.63091,2754.2,2753.1,3.63224]
[1740020147145,0.04518318,2753.7,2753.1,3.63224]
[1740020147462,3.63109,2754.0,2753.1,3.63224]
[1740020147626,0.04518318,2753.9,2753.2,4.86432998]
[1740020147821,0.04518318,2753.9,2753.3,3.632]
[1740020148017,3.63091,2754.2,2753.3,3.632]
[1740020148262,0.04518318,2754.1,2753.3,3.632]
[1740020148470,0.04518318,2754.1,2753.4,3.63187]
[1740020148675,0.04518318,2754.1,2753.5,0.726387]
[1740020148875,3.67618318,2754.1,2753.2,1.23220998]
[1740020149161,3.63136,2753.8,2753.3,0.283]
[1740020149464,0.04545167,2753.7,2753.3,0.283]
[1740020149973,0.04545167,2753.6,2753.3,0.283]
[1740020150318,3.63109,2754.0,2753.3,0.674525]
[1740020150531,0.04545167,2753.5,2753.3,0.283]
[1740020150756,3.63148,2753.7,2753.0,5.28]
[1740020150963,0.04545167,2753.4,2752.7,0.73638334]
[1740020151300,3.63231,2753.1,2752.4,0.7888]
[1740020151581,3.63231,2753.1,2752.5,0.282]
[1740020151876,4.41566,2752.9,2752.5,0.282]
[1740020152238,0.04502202,2752.8,2752.5,0.282]
[1740020153285,3.67776202,2752.8,2752.5,0.282]
[1740020153987,0.04502202,2752.8,2752.5,0.282]
[1740020155639,3.63281,2752.7,2752.5,0.282]
[1740020155839,0.0443774,2752.6,2752.5,0.282]
[1740020156753,8.04835,2752.9,2752.5,0.282]
[1740020157045,3.63267,2752.8,2752.5,0.282]
[1740020157245,0.0443774,2752.7,2752.5,0.282]
[1740020157573,3.63267,2752.8,2752.5,0.282]
[1740020157795,0.0443774,2752.6,2752.5,0.282]
[1740020157956,3.63267,2752.8,2752.5,0.282]
[1740020158155,0.0443774,2752.6,2752.5,0.282]
[1740020158673,3.63267,2752.8,2752.5,0.282]
[1740020158852,0.0443774,2752.7,2752.5,0.282]
[1740020159058,3.63267,2752.8,2752.5,0.282]
[1740020159253,3.63302,2752.6,2752.1,0.8292]
[1740020159479,3.63302,2752.6,2752.2,0.281]
[1740020159651,0.04433134,2752.5,2752.2,0.281]
[1740020160076,0.04433134,2752.5,2752.1,1.84185531]
[1740020160280,0.04433134,2752.5,2752.0,8.442]
[1740020160455,3.63326,2752.4,2752.0,8.442]
[1740020160658,3.63326,2752.4,2752.0,0.281]
[1740020160864,0.04433134,2752.3,2751.8,3.0]
[1740020161083,0.04433134,2752.3,2751.9,0.281]
[1740020161383,0.04433134,2752.3,2751.9,3.91472]
[1740020161541,0.04433134,2752.3,2751.9,0.972472]
[1740020161741,0.8066,2753.2,2752.2,3.40985977]
[1740020161982,0.8066,2753.2,2752.5,3.63297]
[1740020162242,3.63174,2753.6,2752.8,3.63255]
[1740020162243,0.04219842,2753.0,2752.8,3.63255]
[1740020162481,0.8065,2753.5,2752.8,3.63255]
[1740020162482,0.8065,2753.5,2752.9,0.281]
[1740020162655,0.8065,2753.8,2753.0,3.6323]
[1740020162850,4.43785,2753.8,2753.0,3.6323]
[1740020163070,3.63164,2753.6,2752.9,0.281]
[1740020163322,0.8065,2753.8,2753.0,0.81329268]
[1740020163627,3.63163,2753.6,2753.0,0.81329268]
[1740020163932,3.63174,2753.5,2753.0,0.81329268]
[1740020164238,4.43789,2753.8,2752.8,0.281]
[1740020164367,0.8049,2753.1,2752.6,0.281]
[1740020164571,3.63249,2753.0,2752.6,0.281]
[1740020164886,3.63184,2753.5,2752.8,3.63265]
[1740020164887,0.8049,2753.5,2752.8,3.63265]
[1740020165399,4.43667,2753.5,2752.7,0.7547]
[1740020165708,4.43667,2753.5,2752.8,0.466852]
[1740020166312,0.8049,2753.5,2752.7,0.7547]
[1740020166524,3.63213,2753.2,2752.6,0.281]
[1740020166677,3.63241,2753.0,2752.5,0.281]
[1740020166884,4.43693,2752.9,2752.4,0.281]
[1740020167083,0.8044,2752.9,2752.4,0.281]
[1740020167325,4.41279,2753.2,2752.4,0.672441]
[1740020167500,4.41279,2753.2,2752.4,0.281]
[1740020167826,5.34,2753.4,2752.6,3.63291]
[1740020167996,5.34,2753.4,2752.9,3.63244]
[1740020168201,4.41875,2753.8,2752.9,3.63244]
[1740020168414,9.75875,2753.8,2752.9,3.995684]
[1740020168615,13.39022,2753.8,2752.9,3.995684]
[1740020168790,9.75875,2753.8,2752.9,3.995684]
[1740020168991,3.63163,2753.6,2752.9,3.995684]
[1740020169322,3.63163,2753.6,2753.0,0.3995684]
[1740020169529,3.63163,2753.6,2752.6,4.4515]
[1740020169530,3.63191,2753.4,2752.6,4.4515]
[1740020169834,3.63201,2753.3,2752.6,0.8186]
[1740020170206,0.04261325,2753.2,2752.7,0.282]
[1740020170908,3.63191,2753.4,2752.7,0.282]
[1740020171105,0.04278221,2753.1,2752.7,0.282]
[1740020171304,3.63201,2753.3,2752.7,1.45963798]
[1740020171843,0.04278221,2753.2,2752.7,1.45963798]
[1740020172212,3.63227,2753.1,2752.6,0.8186]
[1740020172417,4.40617,2753.1,2752.3,0.8049]
[1740020172626,3.63253,2752.9,2752.4,0.281]
[1740020172933,0.04312023,2752.8,2752.4,0.281]
[1740020173540,3.63237,2753.1,2752.4,0.281]
[1740020173713,0.04312023,2752.7,2752.4,0.281]
[1740020173916,3.63241,2753.0,2752.4,0.281]
[1740020174153,0.0429743,2752.6,2752.4,0.281]
[1740020174373,3.63241,2753.0,2752.4,0.281]
[1740020174547,0.0429743,2752.5,2752.4,0.281]
[1740020174750,3.63237,2753.1,2752.4,3.91419]
[1740020174936,5.34,2753.3,2752.7,3.63276]
[1740020175143,4.40577,2753.4,2752.7,1.14720698]
[1740020175514,4.40577,2753.4,2752.7,4.77987698]
[1740020175668,3.63167,2753.6,2752.7,4.77987698]
[1740020175868,3.63196,2753.4,2752.7,1.14720698]
[1740020176057,7.26392,2753.4,2752.7,1.14720698]
[1740020176662,3.63182,2753.5,2752.7,1.14720698]
[1740020176865,3.63182,2753.5,2752.8,3.63265]